[Event "2nd Turkish League 2017"]
[Site "Konya"]
[Date "2017.07.17"]
[Round "1"]
[White "Turan, Erkan"]
[Black "Duman, Aydin"]
[Result "0-1"]
[ECO "B27"]
[WhiteElo "1669"]
[BlackElo "2056"]
[Annotator "NA"]
[PlyCount "84"]
[EventType "team-tourn"]
[EventCountry "TUR"]
[SourceTitle "playchess.com"]
[Source "ChessBase"]
[SourceQuality "1"]
[TimeControl "5400+30"]

1. e4 {[%emt 0:00:30]} c5 {[%emt 0:02:00]} 2. Nf3 {[%emt 0:00:00]} g6 {[%emt 0:00:30]} 3. Bc4 {[%emt 0:01:00]} Bg7 {[%emt 0:00:30]} 4. d3 {[%emt 0:01:30]} e6 {[%emt 0:00:30]} 5. Nc3 {[%emt 0:00:30]} Ne7 {[%emt 0:00:30]} 6. e5 {[%emt 0:00:30]} O-O {[%emt 0:06:30]} 7. Bf4 {[%emt 0:04:30]} d6 {[%emt 0:17:30]} 8. exd6 {[%emt 0:08:30]} Nf5 {[%emt 0:00:30]} 9. h4 {[%emt 0:00:30]} Nxd6 {[%emt 0:03:30]} 10. Bxd6 {[%emt 0:02:30]} Qxd6 {[%emt 0:00:30]} 11. Ne4 {[%emt 0:00:00]} Qc6 {[%emt 0:02:30]} 12. a4 {[%emt 0:01:00]} Bxb2 {[%emt 0:01:30]} 13. h5 {[%emt 0:00:00]} Nd7 {[%emt 0:03:30]} 14. hxg6 {[%emt 0:01:00]} hxg6 {[%emt 0:00:30]} 15. Qd2 {[%emt 0:01:30]} Bg7 {[%emt 0:05:30]} 16. c3 {[%emt 0:10:30]} f5 {[%emt 0:11:30]} 17. Neg5 {[%emt 0:00:30]} Nb6 {[%emt 0:00:30]} 18. Bb5 {[%emt 0:05:30]} Qd6 {[%emt 0:04:30]} 19. a5 {[%emt 0:01:30]} Nd5 {[%emt 0:00:00]} 20. Rc1 {[%emt 0:00:00]} Qf4 {[%emt 0:08:00]} 21. g3 {[%emt 0:02:00]} Qxd2+ {[%emt 0:06:30]} 22. Kxd2 {[%emt 0:00:30]} Nc7 {[%emt 0:01:30]} 23. Bc4 {[%emt 0:00:00]} b5 {[%emt 0:00:30]} 24. Ba2 {[%emt 0:01:00]} Rd8 {[%emt 0:01:30]} 25. Rh7 {[%emt 0:00:00]} Bb7 {[%emt 0:09:49]} 26. Rch1 {[%emt 0:10:00]} Bxf3 {[%emt 0:00:52]} 27. Nxf3 {[%emt 0:00:30]} Nd5 {[%emt 0:00:48]} 28. Ng5 {[%emt 0:00:30]} Bxc3+ {[%emt 0:01:50]} 29. Kc1 {[%emt 0:00:30]} c4 {[%emt 0:01:24]} 30. dxc4 {[%emt 0:04:30]} Nb4 {[%emt 0:00:41]} 31. Bb3 {[%emt 0:00:30]} Bd2+ {[%emt 0:02:11]} 32. Kb1 {[%emt 0:00:30]} Bxg5 {[%emt 0:00:30]} 33. cxb5 {[%emt 0:00:00]} Nd5 {[%emt 0:00:00]} 34. Rh8+ {[%emt 0:01:00]} Kf7 {[%emt 0:01:15]} 35. R8h7+ {[%emt 0:00:00]} Kf8 {[%emt 0:00:16]} 36. Rh8+ {[%emt 0:01:00]} Ke7 {[%emt 0:00:22]} 37. R8h7+ {[%emt 0:00:00]} Kd6 {[%emt 0:00:06]} 38. f4 {[%emt 0:00:00]} Bf6 {[%emt 0:00:30]} 39. Rc1 {[%emt 0:00:30]} Nc3+ {[%emt 0:00:11]} 40. Kc2 {[%emt 0:00:30]} Nxb5 {[%emt 0:00:06]} 41. Rd1+ {[%emt 0:00:30]} Nd4+ {[%emt 0:00:30]} 42. Kb1 {[%emt 0:00:30]} Rab8 {[%emt 0:00:33]} 0-1

[Event "2nd Turkish League 2017"]
[Site "Konya"]
[Date "2017.07.17"]
[Round "1"]
[White "Ince, Ali Emre"]
[Black "Ibik, Halit Yavuz"]
[Result "0-1"]
[ECO "B22"]
[WhiteElo "1591"]
[BlackElo "2004"]
[Annotator "NA"]
[PlyCount "60"]
[EventType "team-tourn"]
[EventCountry "TUR"]
[SourceTitle "playchess.com"]
[Source "ChessBase"]
[SourceQuality "1"]
[TimeControl "5400+30"]

1. e4 c5 {[%emt 0:01:00]} 2. c3 {[%emt 0:01:00]} d5 {[%emt 0:00:30]} 3. exd5 {[%emt 0:00:30]} Qxd5 {[%emt 0:00:00]} 4. d4 {[%emt 0:00:00]} Nc6 {[%emt 0:00:00]} 5. Nf3 {[%emt 0:00:00]} Nf6 {[%emt 0:00:30]} 6. dxc5 {[%emt 0:00:30]} Qxd1+ {[%emt 0:00:30]} 7. Kxd1 {[%emt 0:00:30]} Bg4 {[%emt 0:04:30]} 8. Be2 {[%emt 0:02:30]} e5 {[%emt 0:02:30]} 9. b4 {[%emt 0:01:30]} a5 {[%emt 0:09:30]} 10. b5 {[%emt 0:12:30]} O-O-O+ {[%emt 0:03:30]} 11. Ke1 {[%emt 0:04:30]} Bxf3 {[%emt 0:02:30]} 12. gxf3 {[%emt 0:00:30]} Nb8 {[%emt 0:00:30]} 13. Rg1 {[%emt 0:04:30]} Nd5 {[%emt 0:06:30]} 14. Bc4 {[%emt 0:06:30]} g6 {[%emt 0:05:30]} 15. Ba3 {[%emt 0:02:30]} f5 {[%emt 0:03:30]} 16. Bxd5 {[%emt 0:18:30]} Rxd5 {[%emt 0:00:30]} 17. c4 {[%emt 0:00:30]} Rd4 {[%emt 0:04:30]} 18. Nd2 {[%emt 0:03:30]} Rd3 {[%emt 0:14:30]} 19. Bb2 {[%emt 0:05:30]} Bh6 {[%emt 0:08:30]} 20. Rd1 {[%emt 0:07:30]} Rhd8 {[%emt 0:02:30]} 21. Bc1 {[%emt 0:01:30]} Nd7 {[%emt 0:01:30]} 22. Nb3 {[%emt 0:03:30]} Nxc5 {[%emt 0:02:30]} 23. Rxd3 {[%emt 0:03:56]} Nxd3+ {[%emt 0:00:30]} 24. Ke2 {[%emt 0:00:13]} Nxc1+ {[%emt 0:00:30]} 25. Nxc1 {[%emt 0:01:39]} Rd2+ {[%emt 0:00:00]} 26. Ke1 {[%emt 0:00:53]} Rb2 {[%emt 0:02:00]} 27. Kd1 {[%emt 0:03:21]} Rxf2 {[%emt 0:00:30]} 28. Nb3 {[%emt 0:03:28]} Rxa2 {[%emt 0:00:30]} 29. Re1 {[%emt 0:00:40]} a4 {[%emt 0:01:30]} 30. Nc1 {[%emt 0:00:29]} Rd2# {[%emt 0:00:00]} 0-1

[Event "2nd Turkish League 2017"]
[Site "Konya"]
[Date "2017.07.17"]
[Round "1"]
[White "Ozaltun, Ecem"]
[Black "Simsek, Meltem"]
[Result "0-1"]
[ECO "A46"]
[WhiteElo "1567"]
[BlackElo "1752"]
[Annotator "NA"]
[PlyCount "88"]
[EventType "team-tourn"]
[EventCountry "TUR"]
[SourceTitle "playchess.com"]
[Source "ChessBase"]
[SourceQuality "1"]
[TimeControl "5400+30"]

1. d4 Nf6 {[%emt 0:01:00]} 2. Nf3 {[%emt 0:01:00]} c5 {[%emt 0:00:00]} 3. e3 {[%emt 0:02:30]} Qc7 {[%emt 0:03:00]} 4. b3 {[%emt 0:03:30]} b6 {[%emt 0:07:30]} 5. Bb2 {[%emt 0:00:30]} Bb7 {[%emt 0:00:00]} 6. Bd3 {[%emt 0:05:30]} d6 {[%emt 0:07:00]} 7. Nbd2 {[%emt 0:09:30]} Nbd7 {[%emt 0:01:30]} 8. Rc1 {[%emt 0:03:30]} g6 {[%emt 0:11:30]} 9. c4 {[%emt 0:08:30]} Bg7 {[%emt 0:01:30]} 10. d5 {[%emt 0:08:30]} O-O {[%emt 0:00:30]} 11. Qc2 {[%emt 0:00:30]} b5 {[%emt 0:09:30]} 12. O-O {[%emt 0:03:30]} b4 {[%emt 0:06:30]} 13. Rfe1 {[%emt 0:10:30]} e5 {[%emt 0:07:30]} 14. e4 {[%emt 0:08:30]} Nb6 {[%emt 0:04:30]} 15. Rcd1 {[%emt 0:05:30]} Nh5 {[%emt 0:00:30]} 16. g3 {[%emt 0:01:30]} Bc8 {[%emt 0:00:30]} 17. Nf1 {[%emt 0:04:30]} a5 {[%emt 0:15:30]} 18. Ne3 {[%emt 0:01:50]} a4 {[%emt 0:06:45]} 19. Bc1 {[%emt 0:03:41]} Bh3 {[%emt 0:01:07]} 20. Ng5 {[%emt 0:01:42]} Bd7 {[%emt 0:00:01]} 21. Be2 {[%emt 0:00:26]} h6 {[%emt 0:00:40]} 22. Bxh5 {[%emt 0:01:32]} hxg5 {[%emt 0:04:31]} 23. Bg4 {[%emt 0:02:31]} Bxg4 {[%emt 0:00:46]} 24. Nxg4 {[%emt 0:00:05]} Qd7 {[%emt 0:03:19]} 25. Qe2 {[%emt 0:02:43]} f5 {[%emt 0:00:00]} 26. exf5 {[%emt 0:01:45]} gxf5 {[%emt 0:00:13]} 27. Ne3 {[%emt 0:00:30]} f4 {[%emt 0:00:30]} 28. Nc2 {[%emt 0:00:30]} axb3 {[%emt 0:00:30]} 29. axb3 {[%emt 0:00:00]} Qh3 {[%emt 0:03:30]} 30. Qd3 {[%emt 0:00:56]} Ra2 {[%emt 0:00:51]} 31. Rd2 {[%emt 0:01:57]} Rf6 {[%emt 0:01:31]} 32. Qf1 {[%emt 0:00:59]} Qh7 {[%emt 0:00:06]} 33. Qe2 {[%emt 0:01:39]} f3 {[%emt 0:00:15]} 34. Qd3 {[%emt 0:03:10]} Qxd3 {[%emt 0:01:29]} 35. Rxd3 {[%emt 0:00:30]} Rxc2 {[%emt 0:00:00]} 36. Bxg5 {[%emt 0:00:00]} Rf5 {[%emt 0:00:47]} 37. Bd8 {[%emt 0:00:42]} Nd7 {[%emt 0:01:19]} 38. Rb1 {[%emt 0:00:38]} Kf8 {[%emt 0:01:05]} 39. Bc7 {[%emt 0:00:26]} Ke7 {[%emt 0:00:11]} 40. h4 {[%emt 0:02:19]} e4 {[%emt 0:00:51]} 41. Re3 {[%emt 0:00:30]} Nf6 {[%emt 0:00:11]} 42. g4 {[%emt 0:01:36]} Rf4 {[%emt 0:00:59]} 43. g5 {[%emt 0:00:40]} Ng4 {[%emt 0:00:26]} 44. Rf1 {[%emt 0:00:56]} Nxe3 {[%emt 0:00:12]} 0-1

[Event "2nd Turkish League 2017"]
[Site "Konya"]
[Date "2017.07.17"]
[Round "1"]
[White "Turkkan, Ece"]
[Black "Yalcinkaya, Eda"]
[Result "1-0"]
[ECO "D86"]
[WhiteElo "1532"]
[BlackElo "1385"]
[Annotator "NA"]
[PlyCount "124"]
[EventType "team-tourn"]
[EventCountry "TUR"]
[SourceTitle "playchess.com"]
[Source "ChessBase"]
[SourceQuality "1"]
[TimeControl "5400+30"]

1. d4 {[%emt 0:00:30]} Nf6 {[%emt 0:01:00]} 2. c4 {[%emt 0:00:00]} d5 {[%emt 0:00:30]} 3. Nc3 {[%emt 0:00:00]} Nc6 {[%emt 0:00:30]} 4. cxd5 {[%emt 0:00:30]} Nxd5 {[%emt 0:00:30]} 5. e4 {[%emt 0:00:30]} Nxc3 {[%emt 0:01:30]} 6. bxc3 {[%emt 0:00:30]} g6 {[%emt 0:05:30]} 7. Nf3 {[%emt 0:01:30]} Bg7 {[%emt 0:00:00]} 8. Bc4 {[%emt 0:03:30]} O-O {[%emt 0:01:00]} 9. O-O {[%emt 0:00:30]} a6 {[%emt 0:03:30]} 10. a4 {[%emt 0:05:30]} Bd7 {[%emt 0:06:30]} 11. Bf4 {[%emt 0:12:30]} e6 {[%emt 0:08:30]} 12. e5 {[%emt 0:21:30]} Na5 {[%emt 0:04:30]} 13. Be2 {[%emt 0:04:30]} Bc6 {[%emt 0:17:30]} 14. Nd2 {[%emt 0:11:30]} b5 {[%emt 0:08:30]} 15. Bf3 {[%emt 0:05:30]} Qd7 {[%emt 0:04:30]} 16. Re1 {[%emt 0:06:30]} Nb7 {[%emt 0:12:30]} 17. Ne4 {[%emt 0:13:29]} f6 {[%emt 0:03:49]} 18. Nd2 {[%emt 0:05:45]} Rab8 {[%emt 0:07:30]} 19. exf6 {[%emt 0:02:33]} Bxf6 {[%emt 0:05:49]} 20. Be5 {[%emt 0:02:00]} Bxe5 {[%emt 0:01:31]} 21. Rxe5 {[%emt 0:00:04]} Nd8 {[%emt 0:00:35]} 22. Qe2 {[%emt 0:01:02]} Qf7 {[%emt 0:04:16]} 23. Bxc6 {[%emt 0:00:43]} Nxc6 {[%emt 0:00:02]} 24. Rxe6 {[%emt 0:00:00]} Rb6 {[%emt 0:01:13]} 25. Nf3 {[%emt 0:00:54]} bxa4 {[%emt 0:00:39]} 26. Rd1 {[%emt 0:00:37]} Qd7 {[%emt 0:01:03]} 27. d5 {[%emt 0:01:04]} Nd8 {[%emt 0:00:21]} 28. Re7 {[%emt 0:00:00]} Qb5 {[%emt 0:00:32]} 29. c4 {[%emt 0:00:26]} Qc5 {[%emt 0:00:24]} 30. Qe5 {[%emt 0:00:20]} Rf7 {[%emt 0:00:34]} 31. Re8+ {[%emt 0:00:50]} Rf8 {[%emt 0:00:21]} 32. Re7 {[%emt 0:00:36]} Rf7 {[%emt 0:00:12]} 33. Re8+ {[%emt 0:00:55]} Rf8 {[%emt 0:00:10]} 34. Re1 {[%emt 0:00:09]} Nf7 {[%emt 0:00:38]} 35. Qe7 {[%emt 0:00:54]} Qxe7 {[%emt 0:00:22]} 36. R8xe7 {[%emt 0:00:00]} c5 {[%emt 0:01:06]} 37. Rc7 {[%emt 0:00:00]} a3 {[%emt 0:00:52]} 38. Rxc5 {[%emt 0:00:42]} Nd6 {[%emt 0:00:23]} 39. h3 {[%emt 0:00:29]} Rb4 {[%emt 0:00:24]} 40. Ra5 {[%emt 0:00:50]} Nxc4 {[%emt 0:00:29]} 41. Rxa6 {[%emt 0:00:07]} Rd8 {[%emt 0:00:32]} 42. Ne5 {[%emt 0:00:51]} Rxd5 {[%emt 0:00:51]} 43. Nxc4 {[%emt 0:00:30]} Rxc4 {[%emt 0:00:00]} 44. Rxa3 {[%emt 0:00:17]} Kg7 {[%emt 0:00:20]} 45. Ra6 {[%emt 0:00:00]} Rd2 {[%emt 0:00:25]} 46. Re7+ {[%emt 0:00:11]} Kh6 {[%emt 0:00:00]} 47. Raa7 {[%emt 0:00:22]} Rc1+ {[%emt 0:00:06]} 48. Kh2 {[%emt 0:00:39]} Rxf2 {[%emt 0:00:25]} 49. Rxh7+ {[%emt 0:00:00]} Kg5 {[%emt 0:00:58]} 50. Ra5+ {[%emt 0:01:50]} Kf6 {[%emt 0:01:37]} 51. Ra6+ {[%emt 0:00:39]} Kg5 {[%emt 0:00:07]} 52. h4+ {[%emt 0:00:31]} Kf4 {[%emt 0:00:26]} 53. Rxg6 {[%emt 0:00:00]} Ke3 {[%emt 0:00:21]} 54. Re6+ {[%emt 0:00:23]} Kd4 {[%emt 0:00:36]} 55. h5 {[%emt 0:01:14]} Rc5 {[%emt 0:00:37]} 56. Rg6 {[%emt 0:00:29]} Ke4 {[%emt 0:00:54]} 57. Rg8 {[%emt 0:00:31]} Rcc2 {[%emt 0:00:15]} 58. h6 {[%emt 0:00:58]} Rf5 {[%emt 0:00:22]} 59. Rg3 {[%emt 0:00:00]} Rh5+ {[%emt 0:00:50]} 60. Rh3 {[%emt 0:00:09]} Rg5 {[%emt 0:00:30]} 61. Rg7 {[%emt 0:00:10]} Rf5 {[%emt 0:00:27]} 62. h7 {[%emt 0:00:09]} Kd5 {[%emt 0:00:25]} 1-0

[Event "2nd Turkish League 2017"]
[Site "Konya"]
[Date "2017.07.17"]
[Round "1"]
[White "Bolu, Yagmur"]
[Black "Ozturk, Ecem"]
[Result "1-0"]
[ECO "D12"]
[WhiteElo "1464"]
[BlackElo "1271"]
[Annotator "NA"]
[PlyCount "147"]
[EventType "team-tourn"]
[EventCountry "TUR"]
[SourceTitle "playchess.com"]
[Source "ChessBase"]
[SourceQuality "1"]
[TimeControl "5400+30"]

1. d4 {[%emt 0:00:30]} d5 {[%emt 0:01:00]} 2. c4 {[%emt 0:00:30]} c6 {[%emt 0:00:30]} 3. Nf3 {[%emt 0:00:30]} Nf6 {[%emt 0:00:00]} 4. e3 {[%emt 0:00:00]} Bf5 {[%emt 0:00:00]} 5. Nc3 {[%emt 0:00:00]} e6 {[%emt 0:01:30]} 6. Nh4 {[%emt 0:00:00]} Bg6 {[%emt 0:03:30]} 7. Nxg6 {[%emt 0:01:00]} hxg6 {[%emt 0:00:30]} 8. Bd3 {[%emt 0:03:30]} Be7 {[%emt 0:07:30]} 9. g4 {[%emt 0:03:30]} dxc4 {[%emt 0:07:30]} 10. Bxc4 {[%emt 0:00:30]} Nd5 {[%emt 0:01:30]} 11. Bd2 {[%emt 0:09:30]} Qc7 {[%emt 0:10:30]} 12. h3 {[%emt 0:02:30]} Nxc3 {[%emt 0:02:30]} 13. Bxc3 {[%emt 0:02:30]} Nd7 {[%emt 0:02:30]} 14. Qf3 {[%emt 0:05:30]} Nb6 {[%emt 0:03:30]} 15. Bb3 {[%emt 0:05:30]} Nd5 {[%emt 0:03:30]} 16. e4 {[%emt 0:07:30]} Nxc3 {[%emt 0:02:30]} 17. bxc3 {[%emt 0:04:30]} a5 {[%emt 0:09:30]} 18. a4 {[%emt 0:08:30]} Rc8 {[%emt 0:07:30]} 19. O-O {[%emt 0:07:30]} g5 {[%emt 0:07:30]} 20. Rac1 {[%emt 0:03:30]} O-O {[%emt 0:06:30]} 21. c4 {[%emt 0:07:30]} Qf4 {[%emt 0:02:26]} 22. Qxf4 {[%emt 0:01:30]} gxf4 {[%emt 0:00:03]} 23. c5 {[%emt 0:00:30]} g5 {[%emt 0:01:07]} 24. Rfe1 {[%emt 0:05:30]} Rfd8 {[%emt 0:05:38]} 25. d5 {[%emt 0:03:34]} e5 {[%emt 0:01:44]} 26. d6 {[%emt 0:02:02]} Bf8 {[%emt 0:00:37]} 27. Bc4 {[%emt 0:03:20]} Rd7 {[%emt 0:01:00]} 28. Rb1 {[%emt 0:01:07]} Ra8 {[%emt 0:01:49]} 29. Rb3 {[%emt 0:00:56]} Ra7 {[%emt 0:01:11]} 30. Kg2 {[%emt 0:00:42]} Bg7 {[%emt 0:00:37]} 31. f3 {[%emt 0:02:38]} Bf6 {[%emt 0:00:22]} 32. Kf2 {[%emt 0:00:41]} Bd8 {[%emt 0:00:31]} 33. Ke2 {[%emt 0:00:48]} Kg7 {[%emt 0:01:27]} 34. Reb1 {[%emt 0:01:12]} Kf6 {[%emt 0:00:48]} 35. Kd3 {[%emt 0:00:45]} Kg7 {[%emt 0:02:06]} 36. Kc3 {[%emt 0:00:12]} Kf6 {[%emt 0:00:25]} 37. R3b2 {[%emt 0:00:12]} Kg7 {[%emt 0:00:19]} 38. Rg2 {[%emt 0:01:42]} Kg6 {[%emt 0:00:35]} 39. Kc2 {[%emt 0:01:55]} Kg7 {[%emt 0:00:15]} 40. h4 {[%emt 0:02:45]} gxh4 {[%emt 0:02:37]} 41. g5 {[%emt 0:00:57]} h3 {[%emt 0:01:42]} 42. Rh2 {[%emt 0:01:05]} Bxg5 {[%emt 0:00:28]} 43. Rg1 {[%emt 0:00:48]} Kf6 {[%emt 0:00:30]} 44. Rxh3 {[%emt 0:00:00]} Ra8 {[%emt 0:00:05]} 45. Rh2 {[%emt 0:00:43]} Rf8 {[%emt 0:01:08]} 46. Rh5 {[%emt 0:00:33]} Rg8 {[%emt 0:00:38]} 47. Kc3 {[%emt 0:00:53]} Rg6 {[%emt 0:01:07]} 48. Kc2 {[%emt 0:00:05]} Rg8 {[%emt 0:00:33]} 49. Kc3 {[%emt 0:00:30]} Rg6 {[%emt 0:00:10]} 50. Bf1 {[%emt 0:00:27]} Rd8 {[%emt 0:01:34]} 51. Bh3 {[%emt 0:00:15]} Rdg8 {[%emt 0:01:01]} 52. Bf5 {[%emt 0:00:06]} R6g7 {[%emt 0:00:36]} 53. Kc4 {[%emt 0:00:43]} Rd8 {[%emt 0:00:48]} 54. d7 {[%emt 0:00:48]} Rdg8 {[%emt 0:01:53]} 55. Rg2 {[%emt 0:00:20]} Ke7 {[%emt 0:00:00]} 56. Rd2 {[%emt 0:00:49]} Rb8 {[%emt 0:00:24]} 57. Rb2 {[%emt 0:01:10]} f6 {[%emt 0:00:32]} 58. Rhh2 {[%emt 0:00:29]} Rf7 {[%emt 0:00:22]} 59. Rb6 {[%emt 0:00:23]} Rg7 {[%emt 0:00:41]} 60. Rhb2 {[%emt 0:00:57]} Rgg8 {[%emt 0:00:25]} 61. Rxb7 {[%emt 0:00:12]} Rxb7 {[%emt 0:00:30]} 62. Rxb7 {[%emt 0:00:00]} Bh4 {[%emt 0:00:30]} 63. Rc7 {[%emt 0:00:09]} Rb8 {[%emt 0:00:26]} 64. Rxc6 {[%emt 0:01:47]} Rb4+ {[%emt 0:00:11]} 65. Kd3 {[%emt 0:00:27]} Rd4+ {[%emt 0:00:46]} 66. Ke2 {[%emt 0:00:13]} Rb4 {[%emt 0:00:13]} 67. Rc8 {[%emt 0:00:46]} Rb2+ {[%emt 0:00:17]} 68. Kd3 {[%emt 0:00:23]} Rb3+ {[%emt 0:00:29]} 69. Kc2 {[%emt 0:00:10]} Kf7 {[%emt 0:00:55]} 70. d8=Q {[%emt 0:00:17]} Rc3+ {[%emt 0:00:23]} 71. Kxc3 {[%emt 0:00:17]} Be1+ {[%emt 0:00:30]} 72. Kc2 {[%emt 0:00:30]} Kg7 {[%emt 0:00:00]} 73. Qg8+ {[%emt 0:00:13]} Kh6 {[%emt 0:00:25]} 74. Qg6# {[%emt 0:00:00]} 1-0

[Event "2nd Turkish League 2017"]
[Site "Konya"]
[Date "2017.07.17"]
[Round "1"]
[White "Doganoglu, Doga"]
[Black "Ilkbahar, Nimet Seray"]
[Result "0-1"]
[ECO "D13"]
[WhiteElo "1166"]
[BlackElo "1618"]
[Annotator "NA"]
[PlyCount "80"]
[EventType "team-tourn"]
[EventCountry "TUR"]
[SourceTitle "playchess.com"]
[Source "ChessBase"]
[SourceQuality "1"]
[TimeControl "5400+30"]

1. d4 d5 2. Nf3 {[%emt 0:00:00]} Nf6 {[%emt 0:01:30]} 3. Bf4 {[%emt 0:00:30]} c5 {[%emt 0:00:00]} 4. c3 {[%emt 0:00:00]} cxd4 {[%emt 0:03:00]} 5. cxd4 {[%emt 0:01:00]} Nc6 {[%emt 0:00:30]} 6. h3 {[%emt 0:05:30]} g6 {[%emt 0:02:30]} 7. e3 {[%emt 0:01:30]} Bg7 {[%emt 0:00:30]} 8. a3 {[%emt 0:04:30]} O-O {[%emt 0:01:30]} 9. Bd3 {[%emt 0:00:30]} b6 {[%emt 0:06:30]} 10. Nbd2 {[%emt 0:02:30]} Bb7 {[%emt 0:00:30]} 11. O-O {[%emt 0:00:30]} Rc8 {[%emt 0:03:30]} 12. Rc1 {[%emt 0:02:30]} e6 {[%emt 0:04:30]} 13. Ne5 {[%emt 0:11:30]} Nd7 {[%emt 0:07:30]} 14. Ndf3 {[%emt 0:02:30]} Ndxe5 {[%emt 0:11:30]} 15. Nxe5 {[%emt 0:08:30]} Nxe5 {[%emt 0:05:30]} 16. Bxe5 {[%emt 0:00:30]} Bxe5 {[%emt 0:02:30]} 17. dxe5 {[%emt 0:00:30]} Qg5 {[%emt 0:07:30]} 18. f4 {[%emt 0:02:30]} Qe7 {[%emt 0:03:30]} 19. Qg4 {[%emt 0:04:30]} Qd7 {[%emt 0:06:30]} 20. f5 {[%emt 0:03:30]} Rxc1 {[%emt 0:00:30]} 21. Rxc1 {[%emt 0:02:30]} exf5 {[%emt 0:00:30]} 22. Qf4 {[%emt 0:04:30]} Rc8 {[%emt 0:02:30]} 23. Rf1 {[%emt 0:02:30]} Qc6 {[%emt 0:01:30]} 24. Qg3 {[%emt 0:03:30]} Kh8 {[%emt 0:01:30]} 25. h4 {[%emt 0:05:30]} Re8 {[%emt 0:01:30]} 26. h5 {[%emt 0:01:30]} Qc7 {[%emt 0:01:30]} 27. Qg5 {[%emt 0:13:58]} Qxe5 {[%emt 0:01:30]} 28. hxg6 {[%emt 0:02:35]} fxg6 {[%emt 0:00:30]} 29. Rf3 {[%emt 0:05:19]} Rc8 {[%emt 0:03:30]} 30. Rf1 {[%emt 0:02:37]} Qxb2 {[%emt 0:01:41]} 31. Kh2 {[%emt 0:01:30]} Qe5+ {[%emt 0:02:01]} 32. Kg1 {[%emt 0:00:15]} Re8 {[%emt 0:02:16]} 33. Rf3 {[%emt 0:00:19]} Qe7 {[%emt 0:02:38]} 34. Qh6 {[%emt 0:01:27]} Qg7 {[%emt 0:00:25]} 35. Qg5 {[%emt 0:00:00]} d4 {[%emt 0:01:05]} 36. Rh3 {[%emt 0:00:50]} dxe3 {[%emt 0:00:44]} 37. Rxe3 {[%emt 0:00:11]} Qd4 {[%emt 0:00:44]} 38. Kf2 {[%emt 0:00:59]} f4 {[%emt 0:01:46]} 39. Qb5 {[%emt 0:01:37]} Qxe3+ {[%emt 0:00:14]} 40. Kf1 {[%emt 0:02:57]} Qe1# {[%emt 0:00:02]} 0-1

[Event "2nd Turkish League 2017"]
[Site "Konya"]
[Date "2017.07.18"]
[Round "2"]
[White "Benderac, Ana"]
[Black "Bayrak, Asli"]
[Result "1-0"]
[ECO "D13"]
[WhiteElo "2233"]
[BlackElo "2056"]
[Annotator "NA"]
[PlyCount "73"]
[EventType "team-tourn"]
[EventCountry "TUR"]
[SourceTitle "playchess.com"]
[Source "ChessBase"]
[SourceQuality "1"]
[TimeControl "5400+30"]

1. d4 {[%emt 0:00:30]} d5 {[%emt 0:01:00]} 2. c4 {[%emt 0:00:00]} c6 {[%emt 0:01:30]} 3. cxd5 {[%emt 0:00:00]} cxd5 {[%emt 0:00:00]} 4. Nc3 {[%emt 0:00:30]} Nc6 {[%emt 0:00:00]} 5. Nf3 {[%emt 0:00:30]} Nf6 {[%emt 0:00:30]} 6. Bf4 {[%emt 0:01:30]} e6 {[%emt 0:02:30]} 7. e3 {[%emt 0:01:30]} a6 {[%emt 0:01:30]} 8. Bd3 {[%emt 0:01:30]} Be7 {[%emt 0:03:30]} 9. Rc1 {[%emt 0:00:30] LiveBook: 100 Games D13: Slav Defence: Exchange variation without ...Bf5} b5 $146 {[%emt 0:08:30]} (9... Nh5 $11 {keeps the balance.}) ({Predecessor:} 9... O-O 10. Ne5 Nxe5 11. dxe5 Nd7 12. O-O Nc5 13. Bb1 Qb6 14. Qd4 Rd8 15. h4 Bxh4 16. e4 Nd7 17. Qd3 d4 18. Na4 Qa5 {½-½ (43) Salgado Lopez,I (2606)-Malakhov,V (2722) Villafranca 2010}) 10. Nxb5 {[%emt 0:17:30]} axb5 {[%emt 0:00:30]} 11. Rxc6 {[%emt 0:00:00]} Qa5+ {[%emt 0:06:30]} 12. Nd2 {[%emt 0:03:00]} Bd7 {[%emt 0:00:30]} 13. Rc2 {[%emt 0:04:30]} Qxa2 {[%emt 0:01:30]} 14. O-O {[%emt 0:00:00]} O-O {[%emt 0:01:30]} 15. Qe2 {[%emt 0:01:00]} Rfc8 {[%emt 0:02:30]} 16. Rxc8+ {[%emt 0:01:30]} Rxc8 {[%emt 0:00:30]} 17. Nf3 {[%emt 0:00:00]} b4 {[%emt 0:07:30]} 18. Ne5 {[%emt 0:03:00]} Be8 {[%emt 0:02:30]} 19. Bg5 {[%emt 0:08:30]} Qa7 {[%emt 0:06:30]} 20. f3 {[%emt 0:03:30]} Nh5 {[%emt 0:18:30]} 21. Bxe7 {[%emt 0:03:30]} Qxe7 {[%emt 0:00:30]} 22. Ba6 {[%emt 0:03:30]} Rc7 {[%emt 0:01:30]} 23. Nd3 {[%emt 0:07:30]} Qd6 {[%emt 0:06:30]} 24. Nc5 {[%emt 0:00:30]} Nf6 {[%emt 0:00:30]} 25. Bb5 {[%emt 0:00:30]} Qb6 {[%emt 0:04:30]} 26. Bxe8 {[%emt 0:04:30]} Nxe8 {[%emt 0:00:00]} 27. Ra1 {[%emt 0:00:30]} Ra7 {[%emt 0:05:27]} 28. Rxa7 {[%emt 0:03:30]} Qxa7 $14 {[%emt 0:00:02]} 29. Qb5 {[%emt 0:03:30]} Qa1+ {[%emt 0:01:43]} 30. Kf2 {[%emt 0:00:30]} Qxb2+ {[%emt 0:00:30]} 31. Kg3 {[%emt 0:00:30]} Kf8 {[%emt 0:00:00]} 32. Nd7+ {[%emt 0:00:00]} Ke7 {[%emt 0:00:35]} 33. Ne5 {[%emt 0:00:00]} Nd6 {[%emt 0:06:59]} 34. Qd7+ {[%emt 0:00:30]} Kf6 {[%emt 0:00:00]} 35. Qxd6 {[%emt 0:00:30]} Qb1 {[%emt 0:01:13]} 36. Qd7 {[%emt 0:09:30]} Qe1+ {[%emt 0:04:11]} 37. Kg4 {[%emt 0:02:50]} 1-0